bitfinex/quotes_SOLUSD_20260103
["timestamp","ask_amount","ask_price","bid_price","bid_amount"]
[1767407090409,0.59782994,132.72,132.67,3.01946344]
[1767407090606,67.53360382,132.74,132.71,3.01946344]
[1767407090802,67.53360382,132.74,132.69,13.78]
[1767407090988,7.53360382,132.74,132.7,3.01946344]
[1767407091197,7.53360382,132.74,132.68,0.66053142]
[1767407091395,7.53360382,132.74,132.7,3.01946344]
[1767407091991,7.53295668,132.75,132.7,3.01946344]
[1767407092208,5.51529,132.74,132.64,23.44598882]
[1767407092386,8.35013837,132.74,132.69,3.01946344]
[1767407092587,0.66197766,132.74,132.71,3.01946344]
[1767407092903,0.66197766,132.74,132.7,3.01946344]
[1767407093607,0.66197766,132.74,132.72,3.01946344]
[1767407094807,0.66197766,132.74,132.71,10.55440382]
[1767407095111,0.66197766,132.74,132.71,3.01946344]
[1767407095415,0.66197766,132.74,132.7,7.5356393]
[1767407095708,0.66197766,132.74,132.71,3.01946344]
[1767407096510,0.66197766,132.74,132.71,1.92402552]
[1767407097110,0.66197766,132.74,132.71,2.58455694]
[1767407097414,0.66197766,132.73,132.69,8.19670903]
[1767407097602,0.66197766,132.73,132.7,9.45978254]
[1767407097807,0.66197766,132.73,132.71,9.45904908]
[1767407098890,0.66197766,132.73,132.71,7.53502356]
[1767407100405,0.66197766,132.73,132.7,10.12015706]
[1767407102419,0.69531917,132.75,132.71,10.17973846]
[1767407102619,0.69531917,132.75,132.73,1.92402552]
[1767407103126,0.69531917,132.76,132.73,1.92402552]
[1767407103422,0.69531917,132.76,132.73,2.64503186]
[1767407105209,19.63538049,132.77,132.74,0.72100634]
[1767407105529,19.63538049,132.77,132.74,2.64503186]
[1767407106513,19.63538049,132.77,132.75,2.64503186]
[1767407107331,19.63538049,132.77,132.75,23.9377691]
[1767407109504,19.63538049,132.77,132.75,22.01374358]
[1767407112031,0.69527318,132.75,132.71,0.72100634]
[1767407112226,2.61479125,132.74,132.7,0.72100634]
[1767407112818,2.61479125,132.74,132.71,0.72100634]
[1767407114021,0.69076573,132.74,132.71,0.72100634]
[1767407114207,2.61479125,132.74,132.71,8.25611997]
[1767407114406,2.61479125,132.74,132.71,22.01611997]
[1767407114816,0.69076573,132.74,132.71,22.01611997]
[1767407117028,0.69076573,132.74,132.71,8.25611997]
[1767407117338,0.69076573,132.74,132.71,22.01611997]
[1767407119029,9.45727186,132.75,132.71,22.01611997]
[1767407119030,0.69531917,132.75,132.72,0.72100634]
[1767407119526,0.6907202,132.76,132.72,0.72100634]
[1767407119832,2.61474572,132.76,132.72,0.72100634]
[1767407120033,22.25472518,132.77,132.73,0.72100634]
[1767407120233,20.33069966,132.77,132.74,0.72100634]
[1767407120436,19.63538049,132.77,132.74,0.72100634]
[1767407120832,19.63538049,132.77,132.74,8.25425081]
[1767407121124,19.63538049,132.77,132.75,0.72100634]
[1767407121323,19.63538049,132.77,132.75,14.45122733]
[1767407121719,19.63538049,132.77,132.75,0.69122733]
[1767407122132,19.63538049,132.77,132.74,21.29324447]
[1767407123329,19.63538049,132.77,132.74,22.01425081]
[1767407123535,19.63538049,132.77,132.75,8.25387426]
[1767407125742,19.63538049,132.77,132.75,0.72100634]
[1767407125948,19.63538049,132.77,132.75,14.48100634]
[1767407127147,19.63538049,132.77,132.75,22.01390433]
[1767407127735,19.63538049,132.77,132.76,0.72100634]
[1767407128448,19.63538049,132.77,132.76,2.64503186]
[1767407128739,0.69531917,132.79,132.76,2.64503186]
[1767407133435,0.69531917,132.79,132.76,0.72100634]
[1767407134147,8.20870536,132.8,132.76,0.72100634]
[1767407134343,0.67816478,132.81,132.77,0.72223664]
[1767407134523,7.52894912,132.83,132.79,0.72223664]
[1767407134524,0.67816478,132.82,132.79,0.72223664]
[1767407134720,5.72766134,132.81,132.78,14.46223664]
[1767407134921,0.67816478,132.81,132.78,21.99330411]
[1767407137059,5.0560919,132.8,132.78,21.99330411]
[1767407137242,0.67816478,132.81,132.78,21.99330411]
[1767407137443,5.05651963,132.8,132.78,21.99330411]
[1767407137644,5.05651963,132.8,132.78,14.46223664]
[1767407137843,10.13198856,132.81,132.78,14.46223664]
[1767407138344,2.6021903,132.81,132.78,14.46223664]
[1767407138947,5.05691506,132.8,132.78,14.46223664]
[1767407139154,2.6021903,132.81,132.78,14.46223664]
[1767407139464,5.05691506,132.8,132.78,14.46223664]
[1767407139851,2.6021903,132.81,132.78,14.46223664]
[1767407140151,5.05634701,132.8,132.78,14.46223664]
[1767407140360,0.67816478,132.81,132.78,14.46223664]
[1767407140668,2.6021903,132.81,132.78,14.46223664]
[1767407141164,2.6021903,132.81,132.78,21.99343682]
[1767407141961,0.67816478,132.78,132.73,0.75340917]
[1767407142163,2.6021903,132.74,132.71,0.72223664]
[1767407142360,13.74,132.78,132.69,0.72223664]
[1767407142361,1.92402552,132.72,132.69,0.72223664]
[1767407142670,1.92402552,132.7,132.68,7.53656552]
[1767407143757,1.92402552,132.69,132.65,18.84607052]
[1767407143949,1.92402552,132.69,132.66,13.74]
[1767407144267,1.92402552,132.69,132.66,7.53762654]
[1767407144464,1.92402552,132.68,132.66,8.25986318]
[1767407144851,1.92402552,132.69,132.66,8.25986318]
[1767407145253,1.92402552,132.7,132.67,8.25958763]
[1767407145458,0.67816478,132.71,132.67,8.25958763]
[1767407145770,1.92402552,132.7,132.67,8.25958763]
[1767407145969,2.6021903,132.71,132.67,8.25958763]
[1767407147661,1.92402552,132.7,132.67,8.25958763]
[1767407148576,1.92402552,132.7,132.67,0.72223664]
[1767407148751,2.6021903,132.7,132.67,0.72223664]
[1767407149154,0.67816478,132.69,132.66,13.76]
[1767407149365,2.6021903,132.69,132.66,13.76]
[1767407149565,1.92402552,132.68,132.66,13.76]
[1767407149961,1.92402552,132.68,132.65,8.26068237]
[1767407150164,2.6021903,132.69,132.65,8.26068237]
[1767407150659,0.67816478,132.68,132.65,8.26068237]
[1767407151271,2.6021903,132.68,132.65,8.26068237]
[1767407152070,0.67816478,132.67,132.64,7.53908354]
[1767407152465,0.67816478,132.67,132.65,7.53861878]
[1767407153069,2.6021903,132.68,132.65,7.53861878]
[1767407153253,0.67816478,132.69,132.65,8.26085542]
[1767407153456,2.6021903,132.68,132.65,8.26085542]
[1767407154274,7.5360014,132.7,132.63,0.72223664]
[1767407154275,2.6021903,132.66,132.63,0.72223664]
[1767407154777,1.92402552,132.64,132.62,0.72223664]
[1767407155176,1.92402552,132.64,132.62,8.26254457]
[1767407155385,2.6021903,132.65,132.62,8.26254457]
[1767407156477,3.01068239,132.64,132.62,8.26254457]
[1767407157181,3.01068239,132.64,132.62,7.54030793]
[1767407158083,3.01068239,132.64,132.62,8.26254457]
[1767407158268,0.67816478,132.65,132.62,8.26254457]
[1767407158269,3.01068239,132.65,132.62,8.26254457]
[1767407159671,3.66695661,132.64,132.62,7.54030793]
[1767407160575,3.01068239,132.64,132.62,7.54030793]
[1767407160762,3.01068239,132.64,132.62,8.21533859]
[1767407160965,3.01068239,132.65,132.62,8.21533859]
[1767407161488,0.65627422,132.66,132.62,8.21533859]
[1767407161695,0.65627422,132.68,132.63,0.67503066]
[1767407161863,3.01068239,132.67,132.63,0.67503066]
[1767407162263,3.01068239,132.69,132.64,0.67503066]
[1767407162458,0.65627422,132.7,132.64,0.67503066]
[1767407162663,3.01068239,132.69,132.64,0.67503066]
[1767407162979,3.01068239,132.69,132.65,0.67503066]
[1767407163184,3.01068239,132.69,132.66,7.53806723]
[1767407163377,3.01068239,132.69,132.66,8.21309789]
[1767407163583,3.66695661,132.7,132.66,8.21309789]
[1767407164084,3.01068239,132.69,132.66,8.21309789]
[1767407164387,3.01068239,132.68,132.65,8.21344502]
[1767407165171,4.42036578,132.69,132.66,8.03805279]
[1767407165386,3.66695661,132.69,132.66,8.03805279]
[1767407169697,4.42036578,132.71,132.67,0.67503066]
[1767407169902,0.65627422,132.71,132.67,0.67503066]
[1767407171103,0.65627422,132.71,132.68,7.53693096]
[1767407172300,1.40968339,132.72,132.69,0.67503066]
[1767407172600,0.65627422,132.73,132.7,0.67503066]
[1767407173177,0.65627422,132.73,132.7,8.21034543]
[1767407178290,3.66695661,132.74,132.71,0.67503066]
[1767407179515,0.65627422,132.74,132.71,8.21016877]
[1767407179721,3.66695661,132.75,132.72,0.67503066]
[1767407181407,3.66695661,132.75,132.72,8.20913887]
[1767407183804,0.65627422,132.75,132.72,8.20913887]
[1767407184017,3.66695661,132.75,132.72,8.20913887]
[1767407184519,0.65627422,132.75,132.72,8.20913887]
[1767407186619,3.66695661,132.75,132.72,8.20913887]
[1767407189527,0.65627422,132.75,132.72,8.20913887]
[1767407191322,0.71857481,132.78,132.74,0.70294976]
[1767407191523,0.71857481,132.78,132.75,0.70294976]
[1767407191824,3.01068239,132.79,132.75,0.70294976]
[1767407192507,18.82478778,132.81,132.75,8.23544047]
[1767407192707,3.01068239,132.79,132.75,8.23544047]
[1767407192908,18.82478778,132.81,132.75,8.23544047]
[1767407193227,3.01068239,132.79,132.75,8.23544047]
[1767407193803,3.7292572,132.79,132.75,8.23544047]
[1767407194631,0.70080355,132.78,132.75,8.23544047]
[1767407194930,3.01068239,132.79,132.76,0.70294976]
[1767407196506,40.9319775,132.83,132.76,0.70294976]
[1767407196507,3.01068239,132.83,132.78,0.70294976]
[1767407196906,3.63633603,132.83,132.78,0.70294976]
[1767407197432,3.01068239,132.82,132.78,0.70294976]
[1767407197731,3.01068239,132.82,132.79,8.23363731]
[1767407198227,3.63633603,132.84,132.8,0.70294976]
[1767407199716,3.63633603,132.84,132.8,8.23286883]
[1767407200327,11.16430955,132.84,132.8,8.23286883]
[1767407200534,3.01068239,132.83,132.8,0.70294976]
[1767407200711,3.10968239,132.83,132.8,0.70294976]
[1767407201320,0.099,132.83,132.8,0.70294976]
[1767407201536,3.10968239,132.83,132.8,8.23294933]
[1767407202320,10.63811122,132.83,132.8,0.70294976]
[1767407202524,3.01068239,132.82,132.8,0.70294976]
[1767407204424,3.63106949,132.82,132.78,8.23420446]
[1767407204827,3.63106949,132.82,132.79,0.70294976]
[1767407204828,3.01068239,132.81,132.79,0.70294976]
[1767407205735,3.01068239,132.83,132.79,0.70294976]
[1767407205939,27.26580711,132.87,132.81,0.70294976]
[1767407205940,3.01068239,132.85,132.81,0.70294976]
[1767407206525,3.01068239,132.85,132.82,0.70294976]
[1767407206739,0.62565364,132.86,132.82,0.70294976]
[1767407206918,3.01068239,132.86,132.82,0.70294976]
[1767407208333,3.01068239,132.86,132.83,0.70294976]
[1767407208518,3.01068239,132.85,132.83,0.70294976]
[1767407208929,3.01068239,132.85,132.82,8.23137185]
[1767407209542,3.01068239,132.86,132.83,0.70294976]
[1767407209750,3.73633603,132.87,132.83,0.70294976]
[1767407210446,3.73633603,132.87,132.83,8.2309127]
[1767407210628,3.73633603,132.87,132.84,0.70294976]
[1767407211620,3.10968239,132.86,132.83,0.70294976]
[1767407212487,0.6203871,132.85,132.82,8.23182551]
[1767407214393,0.6203871,132.85,132.82,0.70294976]
[1767407214764,0.6203871,132.85,132.82,8.23188883]
[1767407215155,0.6203871,132.85,132.79,0.70294976]
[1767407215156,3.63633603,132.83,132.79,0.70294976]
[1767407215379,3.01068239,132.83,132.79,0.70294976]
[1767407216982,3.01068239,132.83,132.8,0.5]
[1767407217189,3.01068239,132.83,132.8,1.20294976]
[1767407217786,3.01068239,132.82,132.8,1.20294976]
[1767407218595,1.92171083,132.82,132.8,1.20294976]
[1767407221096,10.07109347,132.82,132.8,0.5]
[1767407221998,2.0259247,132.81,132.8,0.5]
[1767407222378,0.12022537,132.8,132.77,0.66285732]
[1767407222592,1.92171083,132.79,132.76,0.66285732]
[1767407222895,1.92171083,132.79,132.76,8.19515731]
[1767407225481,2.0419362,132.8,132.76,8.19515731]
[1767407232402,0.10437398,132.79,132.76,8.19515731]
[1767407234589,9.45184202,132.8,132.76,8.19515731]
[1767407234894,9.57749566,132.8,132.76,8.19515731]
[1767407235907,2.04736447,132.8,132.76,8.19515731]
[1767407238710,0.099,132.79,132.76,8.19515731]
[1767407239783,2.04736447,132.77,132.73,19.49767701]
[1767407240091,2.04736447,132.77,132.74,7.53316644]
[1767407240900,1.92171083,132.76,132.74,7.53316644]
[1767407241308,2.02071083,132.76,132.74,7.53316644]
[1767407242209,2.04709793,132.75,132.72,8.19720132]
[1767407242392,2.04709793,132.75,132.73,7.53405565]
[1767407242594,1.92171083,132.75,132.73,8.19691297]
[1767407242792,0.099,132.76,132.73,8.19691297]
[1767407242991,1.92171083,132.75,132.73,8.19691297]
[1767407244395,1.92171083,132.75,132.72,8.19744469]
[1767407245490,1.92171083,132.74,132.72,8.19744469]
[1767407248118,1.92171083,132.74,132.71,27.0355391]
[1767407248918,1.92171083,132.74,132.72,0.6695675]
[1767407250519,2.02071083,132.74,132.72,7.53441982]
[1767407251017,1.92171083,132.73,132.72,7.53441982]
[1767407252317,1.92171083,132.73,132.71,8.18931408]
[1767407252912,1.92171083,132.72,132.71,8.18931408]
[1767407254221,1.92171083,132.72,132.69,7.53636295]
[1767407254424,1.92171083,132.7,132.68,7.53681637]
[1767407254592,1.92171083,132.69,132.68,7.53681637]
[1767407254798,1.92171083,132.69,132.68,8.19112699]
[1767407257202,1.92171083,132.69,132.67,0.65431062]
[1767407258801,1.92171083,132.69,132.68,7.53693096]
[1767407259018,0.12486983,132.69,132.66,27.03623852]
[1767407259219,0.12486983,132.69,132.67,7.53730628]
[1767407259524,1.92171083,132.69,132.67,8.1916169]
[1767407260812,1.89171083,132.69,132.67,8.1916169]
[1767407262729,1.86171083,132.69,132.67,8.1916169]
[1767407263725,1.96071083,132.69,132.65,19.5002713]
[1767407263914,0.099,132.69,132.65,19.5002713]
[1767407264116,2.02071083,132.69,132.66,0.65431062]
[1767407266030,2.02071083,132.69,132.66,7.53765397]
[1767407267429,1.92171083,132.67,132.65,8.19269559]
[1767407268216,1.92171083,132.68,132.65,8.19269559]
[1767407268732,0.1253871,132.67,132.65,7.53838497]
[1767407269032,2.04709793,132.67,132.64,8.19325301]
[1767407269220,2.04709793,132.67,132.65,7.53853289]
[1767407269418,1.92171083,132.67,132.65,7.53853289]
[1767407271334,1.92171083,132.67,132.65,8.19284351]
[1767407276240,5.51529,132.77,132.66,0.65431062]
[1767407276413,1.92171083,132.72,132.67,0.65431062]
[1767407276612,1.92171083,132.72,132.68,0.65431062]
[1767407277024,13.76,132.77,132.69,0.65431062]
[1767407277224,1.92171083,132.72,132.69,8.19032049]
[1767407277438,7.53385018,132.74,132.69,8.19032049]
[1767407277618,1.92171083,132.72,132.69,8.19032049]
[1767407277820,7.53385018,132.74,132.69,8.19032049]
[1767407278039,1.92171083,132.72,132.69,8.19032049]
[1767407278240,18.83309912,132.75,132.69,8.19032049]
[1767407278439,1.92171083,132.72,132.69,8.19032049]
[1767407278742,3.00690122,132.72,132.69,8.19032049]
[1767407280045,3.00690122,132.73,132.7,0.69590649]
[1767407280626,7.53384703,132.74,132.71,0.69590649]
[1767407280833,3.00690122,132.73,132.71,0.69590649]
[1767407281137,7.53384703,132.74,132.71,0.69590649]
[1767407281337,3.00690122,132.73,132.71,0.69590649]
[1767407282347,3.00690122,132.73,132.7,0.69590649]
[1767407285347,3.00690122,132.72,132.7,0.69590649]
[1767407285749,3.00690122,132.73,132.7,0.69590649]
[1767407290451,7.53384703,132.74,132.7,0.69590649]
[1767407290631,3.00690122,132.73,132.7,0.69590649]
[1767407290824,7.53384703,132.74,132.7,0.69590649]
[1767407291029,3.00690122,132.73,132.7,0.69590649]
[1767407291430,3.00690122,132.73,132.71,0.69590649]
[1767407291770,10.53872316,132.77,132.73,0.69590649]
[1767407292933,10.53872316,132.77,132.73,8.2299678]
[1767407293753,10.53872316,132.77,132.74,0.69590649]
[1767407295431,3.00690122,132.76,132.74,0.69590649]
[1767407295853,3.00690122,132.75,132.73,0.69590649]
[1767407296556,3.00690122,132.75,132.72,8.23037447]
[1767407296939,3.00690122,132.75,132.73,0.69590649]
[1767407301963,18.82875824,132.78,132.73,0.69590649]
[1767407301964,26.36001294,132.78,132.73,0.69590649]
[1767407302135,3.00690122,132.75,132.73,0.69590649]
[1767407307574,3.00690122,132.76,132.73,0.69590649]
[1767407310272,3.00690122,132.77,132.74,0.68125674]
[1767407310564,10.53838817,132.78,132.74,0.68125674]
[1767407310771,3.00690122,132.77,132.74,0.68125674]
[1767407313780,10.53919877,132.77,132.74,0.68125674]
[1767407316181,3.00690122,132.76,132.74,0.68125674]
[1767407316660,3.00690122,132.76,132.73,8.21520247]
[1767407317383,3.00690122,132.75,132.73,8.21520247]
[1767407317966,3.00690122,132.76,132.73,8.21520247]
[1767407318556,3.00690122,132.76,132.73,0.68125674]
[1767407322569,10.53955587,132.76,132.73,0.68125674]
[1767407322961,3.00690122,132.75,132.73,0.68125674]
[1767407326800,26.36004618,132.78,132.73,0.68125674]
[1767407327080,3.00690122,132.75,132.73,0.68125674]
[1767407329182,10.53959072,132.76,132.73,0.68125674]
[1767407331488,10.5389368,132.77,132.74,0.68125674]
[1767407332264,5.07644891,132.76,132.74,0.68125674]
[1767407333586,3.62644891,132.76,132.72,7.53465943]
[1767407333786,11.21245223,132.78,132.72,43.13820923]
[1767407334088,11.21245223,132.78,132.73,0.68125674]
[1767407334293,3.00690122,132.77,132.73,0.68125674]
[1767407335292,3.00690122,132.77,132.74,0.68125674]
[1767407335293,11.21310682,132.77,132.74,0.68125674]
[1767407338899,10.12939449,132.77,132.74,0.68125674]
[1767407341389,8.2062056,132.77,132.74,0.68125674]
[1767407341581,10.12939449,132.77,132.74,0.68125674]
[1767407342800,1.92318889,132.76,132.74,0.68125674]
[1767407346482,10.12939449,132.77,132.74,0.68125674]
[1767407348406,0.65569189,132.76,132.73,8.2260368]
[1767407348608,0.65569189,132.76,132.73,0.69216151]
[1767407348801,2.57888078,132.76,132.73,0.69216151]
[1767407350405,0.65569189,132.76,132.73,0.69216151]
[1767407350603,2.57888078,132.76,132.73,8.22618798]
[1767407355810,0.65569189,132.76,132.73,8.22618798]
[1767407358612,0.65569189,132.76,132.74,0.69216151]
[1767407368625,9.45511933,132.77,132.74,0.69216151]
[1767407368626,0.65861042,132.78,132.75,0.67440743]
[1767407370128,0.65861042,132.78,132.76,0.70339367]
[1767407374334,2.58179931,132.78,132.76,0.70339367]
[1767407376341,2.58179931,132.78,132.76,8.2355073]
[1767407376923,0.65861042,132.78,132.76,8.2355073]
[1767407377645,2.64408625,132.79,132.76,8.2355073]
[1767407384648,0.72089736,132.78,132.75,0.70339367]
[1767407384833,0.72089736,132.79,132.75,0.70339367]
[1767407387252,0.72089736,132.79,132.75,8.23590587]
[1767407387455,0.72089736,132.78,132.75,8.23590587]
[1767407388851,2.64408625,132.78,132.75,8.23590587]
[1767407389052,0.72089736,132.77,132.75,8.23590587]
[1767407389653,2.64408625,132.78,132.75,8.23590587]
[1767407391884,0.72089736,132.78,132.75,8.23590587]
[1767407392033,2.64408625,132.78,132.75,8.23590587]
[1767407393232,0.72089736,132.78,132.75,8.23590587]
[1767407393439,2.64408625,132.78,132.75,8.23590587]
[1767407394654,0.72089736,132.78,132.75,8.23590587]
[1767407395761,0.72089736,132.78,132.75,8.73590587]
[1767407398343,0.72089736,132.78,132.75,8.0325122]
[1767407398644,0.72089736,132.78,132.75,8.73590587]
[1767407403977,0.6599163,132.77,132.75,0.5]
[1767407404273,3.00416456,132.76,132.73,7.53408855]
[1767407404476,3.00416456,132.75,132.73,7.53408855]
[1767407404779,0.6599163,132.75,132.73,7.53408855]
[1767407405147,0.6599163,132.75,132.71,0.71926924]
[1767407405148,0.65717896,132.73,132.71,0.71926924]
[1767407405462,13.74,132.78,132.72,0.71926924]
[1767407405463,3.39034742,132.76,132.72,0.71926924]
[1767407406465,0.65717896,132.75,132.72,0.71926924]
[1767407407345,0.65717896,132.75,132.72,8.25349621]
[1767407412667,0.65717896,132.75,132.72,0.71926924]
[1767407412852,0.65717896,132.75,132.68,0.75369309]
[1767407412853,0.39154886,132.72,132.68,0.75369309]
[1767407413053,3.00416456,132.7,132.68,0.71926924]
[1767407413264,3.00416456,132.7,132.67,7.53744758]
[1767407413453,3.00416456,132.69,132.67,7.53744758]
[1767407413666,3.66408086,132.69,132.67,7.53744758]
[1767407414679,0.6599163,132.69,132.67,7.53744758]
[1767407414888,0.6599163,132.69,132.65,26.38452672]
[1767407415469,0.6599163,132.69,132.66,0.71926924]
[1767407416172,0.6599163,132.69,132.67,8.25676829]
[1767407418767,3.66408086,132.7,132.67,8.25676829]
[1767407428880,0.6599163,132.7,132.68,0.66753952]
[1767407429057,153.82096329,132.77,132.68,0.66753952]
[1767407429058,0.65816699,132.72,132.68,0.66753952]
[1767407429258,3.66233155,132.75,132.7,0.66753952]
[1767407429473,0.65816699,132.75,132.71,0.66753952]
[1767407429980,0.65816699,132.75,132.72,8.19355015]
[1767407431059,0.65816699,132.75,132.73,0.65889072]
[1767407431381,3.69670452,132.76,132.73,0.65889072]
[1767407431980,0.69253996,132.76,132.73,8.19272495]
[1767407436762,0.69253996,132.76,132.74,0.65889072]
[1767407437765,0.69253996,132.76,132.73,8.19272495]
[1767407438789,3.00416456,132.77,132.74,0.65889072]
[1767407439089,0.69253996,132.77,132.75,0.65889072]
[1767407439276,0.69253996,132.78,132.75,0.65889072]
[1767407439473,0.69253996,132.78,132.75,0.62951152]
[1767407440191,0.69253996,132.79,132.75,0.62951152]
[1767407441994,0.69253996,132.79,132.76,8.19127999]
[1767407442178,0.69253996,132.79,132.76,8.16188919]
[1767407442590,0.69253996,132.8,132.77,0.65889072]
[1767407442789,3.69670452,132.8,132.77,0.65889072]
[1767407444281,0.69253996,132.79,132.77,0.65889072]
[1767407445076,0.69253996,132.79,132.77,0.62967125]
[1767407445690,0.69253996,132.79,132.77,0.60130846]
[1767407446996,0.69253996,132.8,132.77,8.13312085]
[1767407447599,0.69253996,132.8,132.77,8.13310219]
[1767407447797,0.69253996,132.82,132.78,0.65889072]
[1767407447993,0.1,132.83,132.78,0.65889072]
[1767407447994,3.69670452,132.81,132.78,0.65889072]
[1767407451604,0.69253996,132.8,132.78,8.19000432]
[1767407451779,0.69253996,132.81,132.78,8.19000432]
[1767407453608,0.69253996,132.81,132.78,0.65889072]
[1767407453987,0.69253996,132.81,132.78,8.19003724]
[1767407457311,3.69670452,132.81,132.78,8.19003724]
[1767407460707,2.61458654,132.81,132.78,8.19003724]
[1767407462584,0.65751396,132.79,132.76,0.69494941]
[1767407462797,0.65751396,132.79,132.76,8.22690977]
[1767407463014,0.65751396,132.79,132.77,0.69494941]
[1767407463312,0.65751396,132.79,132.77,8.2267031]
[1767407463885,0.65751396,132.8,132.77,8.2267031]
[1767407464814,2.57956054,132.8,132.77,8.2267031]
[1767407465010,0.65751396,132.8,132.77,8.2267031]
[1767407467692,0.65751396,132.79,132.77,8.2267031]
[1767407471295,2.57956054,132.8,132.77,8.2267031]
[1767407471496,0.65751396,132.8,132.78,0.69494941]
[1767407472129,2.57956054,132.81,132.78,0.69494941]
[1767407472418,2.57956054,132.82,132.78,0.69494941]
[1767407473530,2.57956054,132.82,132.79,0.69494941]
[1767407473700,0.65751396,132.82,132.79,0.69494941]
[1767407474111,0.75751396,132.83,132.79,0.69494941]
[1767407475506,0.1,132.83,132.82,0.69494941]
[1767407475721,0.1,132.83,132.81,7.52904458]
[1767407476203,0.75751396,132.83,132.8,7.52987378]
[1767407477628,0.75751396,132.83,132.8,8.22482319]
[1767407479022,0.1,132.83,132.81,0.69494941]
[1767407480727,0.1,132.83,132.81,8.22424485]
[1767407484836,0.1,132.83,132.82,0.69494941]
[1767407485029,0.65751396,132.86,132.83,0.69494941]
[1767407486418,0.65751396,132.86,132.83,8.22305936]
[1767407486633,0.65751396,132.86,132.84,0.69494941]
[1767407486823,0.65751396,132.86,132.83,8.72305936]
[1767407487335,0.75751396,132.87,132.84,0.69494941]
[1767407487932,0.75751396,132.87,132.83,8.72305936]
[1767407489410,0.75751396,132.87,132.84,8.23514789]
[1767407492432,2.67956054,132.87,132.84,0.70742322]
[1767407492734,2.67956054,132.87,132.84,7.5278509]
[1767407492735,0.66194212,132.86,132.84,7.5278509]
[1767407493123,0.76194212,132.87,132.84,8.23527412]
[1767407493318,2.6839887,132.87,132.84,8.23527412]
[1767407496961,0.76194212,132.87,132.84,8.23527412]
[1767407497141,2.6839887,132.87,132.84,8.23527412]
[1767407498360,1.92204658,132.86,132.84,8.23527412]
[1767407499172,0.76194212,132.87,132.84,8.23527412]
[1767407500654,0.1,132.87,132.85,0.70742322]
[1767407501062,1e-08,132.87,132.85,0.70742322]
[1767407501248,1e-08,132.87,132.86,7.52671985]
[1767407502239,1e-08,132.87,132.86,0.70742322]
[1767407503136,0.66194213,132.87,132.85,0.70742322]
[1767407503336,1.92204658,132.87,132.85,0.70742322]
[1767407503736,13.84,132.89,132.85,0.70742322]
[1767407503938,1.92204658,132.88,132.85,0.70742322]
[1767407504475,21.36543204,132.89,132.85,0.70742322]
[1767407504759,1.92204658,132.88,132.85,8.23470024]
[1767407505056,1.92204658,132.88,132.85,0.70742322]
[1767407505239,1.92204658,132.87,132.85,0.70742322]
[1767407506762,0.66194212,132.86,132.83,8.23579304]
[1767407507061,0.66194212,132.85,132.83,8.23579304]
[1767407508758,2.5839887,132.85,132.82,8.23633584]
[1767407509343,2.5839887,132.85,132.83,0.5]
[1767407509959,2.5539887,132.85,132.83,0.5]
[1767407510457,2.5539887,132.85,132.83,8.02828175]
[1767407510664,0.63194212,132.85,132.83,7.52828175]
[1767407511280,0.1,132.89,132.84,0.70742322]
[1767407511442,2.02204658,132.89,132.85,0.70742322]
[1767407511993,0.1,132.89,132.85,0.70742322]
[1767407512463,0.1,132.89,132.86,8.23414307]
[1767407512948,0.1,132.89,132.87,0.70742322]
[1767407513267,1e-08,132.89,132.88,0.70742322]
[1767407514358,1e-08,132.9,132.89,7.52502069]
[1767407514760,1e-08,132.9,132.89,8.23244391]
[1767407515747,1e-08,132.9,132.88,8.23300199]
[1767407517761,0.66194212,132.89,132.87,7.5259943]
[1767407518674,0.66194212,132.89,132.87,8.23341752]
[1767407521280,2.5839887,132.89,132.86,8.2160783]
[1767407521672,0.66194212,132.89,132.86,8.2160783]
[1767407521978,1e-08,132.9,132.85,8.21664396]
[1767407521979,2.57896564,132.88,132.85,8.21664396]
[1767407522555,3.65690805,132.88,132.85,8.21664396]
[1767407524482,0.65691906,132.88,132.85,8.21664396]
[1767407526786,3.65690805,132.88,132.85,8.21664396]
[1767407527853,0.65691906,132.86,132.84,7.52762311]
[1767407528077,3.65690805,132.86,132.84,7.52762311]
[1767407529676,2.99998899,132.86,132.84,8.21721241]
[1767407530069,3.65690805,132.87,132.84,8.21721241]
[1767407534394,0.65691906,132.85,132.83,7.52815865]
[1767407534972,0.62691906,132.85,132.84,7.52785305]
[1767407537195,0.65691906,132.86,132.84,7.52785305]
[1767407537395,2.99998899,132.87,132.84,0.6895893]
[1767407538399,3.65690805,132.87,132.84,0.6895893]
[1767407538879,3.65690805,132.87,132.84,8.21723814]
[1767407539079,0.65691906,132.89,132.85,0.6895893]
[1767407540978,0.65691906,132.89,132.86,7.52671985]
[1767407541497,3.65690805,132.89,132.86,7.52671985]
[1767407543503,3.65690805,132.88,132.86,7.52671985]
[1767407543703,3.65690805,132.88,132.85,8.21662043]
[1767407543902,3.65690805,132.87,132.84,8.2171956]
[1767407546889,2.99998899,132.86,132.84,8.2171956]
[1767407547708,2.99998899,132.86,132.82,8.21857589]
[1767407547709,0.65691906,132.85,132.82,8.21857589]
[1767407551312,0.65691906,132.85,132.82,27.04104238]
[1767407552909,0.65691906,132.85,132.82,8.21857589]
[1767407553508,0.65691906,132.85,132.82,7.52898659]